bitfinex-derivatives/quotes_ETHF0:USTF0_20250520
["timestamp","ask_amount","ask_price","bid_price","bid_amount"]
[1747710765233,3.51584,2577.2,2577.1,5.0461]
[1747710766142,0.7759,2577.0,2576.9,0.00581339]
[1747710767131,0.77602,2576.6,2576.5,1.9619]
[1747710767448,0.77606,2576.5,2576.4,1.8845]
[1747710767935,0.77608,2576.4,2576.3,3.2078]
[1747710768629,0.77607,2576.5,2576.3,3.2078]
[1747710768834,9.909,2577.3,2576.3,3.60505415]
[1747710769033,0.77585,2577.2,2576.9,0.77592]
[1747710769234,0.77585,2577.2,2576.8,0.77594]
[1747710769436,0.77585,2577.2,2576.9,1.9762]
[1747710769628,13.12261339,2577.4,2576.9,1.9762]
[1747710769629,3.98942339,2577.4,2576.9,1.9762]
[1747710769934,3.98940339,2577.4,2577.1,0.77586]
[1747710770135,0.77583,2577.3,2577.0,2.71708]
[1747710770328,3.98941339,2577.4,2577.0,2.71708]
[1747710770531,3.21361339,2577.4,2577.0,1.9412]
[1747710770728,0.77587,2577.1,2577.0,1.9412]
[1747710771637,0.77586,2577.2,2577.0,1.9412]
[1747710772140,3.51586,2577.2,2577.0,1.9412]
[1747710772546,0.77587,2577.1,2577.0,1.9412]
[1747710773238,0.78159339,2577.4,2577.2,0.77583]
[1747710773538,0.77587,2577.2,2577.0,1.9412]
[1747710773726,0.00581339,2577.4,2577.0,1.9412]
[1747710774130,0.77586,2577.2,2577.0,1.9412]
[1747710774328,2.74581339,2577.4,2577.2,0.77583]
[1747710774533,3.52160339,2577.4,2577.2,0.77583]
[1747710774738,3.52160339,2577.4,2577.1,0.77586]
[1747710774949,2.74581339,2577.4,2577.1,0.77586]
[1747710775135,0.00581339,2577.4,2577.0,1.9412]
[1747710775342,0.77583,2577.3,2577.0,2.7171]
[1747710775640,0.77583,2577.3,2577.1,0.77586]
[1747710775842,0.77583,2577.3,2577.0,2.71707]
[1747710776043,0.00581339,2577.4,2577.0,2.71707]
[1747710776246,0.77586,2577.2,2577.0,2.7171]
[1747710776442,0.00581339,2577.4,2577.0,1.9412]
[1747710776642,0.77586,2577.2,2577.0,1.9412]
[1747710776944,0.00581339,2577.4,2577.0,1.9412]
[1747710777241,0.77587,2577.1,2577.0,1.9412]
[1747710777431,0.77586,2577.2,2577.0,2.7171]
[1747710777634,0.00581339,2577.4,2577.0,1.9412]
[1747710778041,0.77585,2577.2,2577.0,2.71709]
[1747710778242,0.77583,2577.3,2577.1,0.77587]
[1747710779136,3.51583,2577.3,2577.1,0.77587]
[1747710779942,0.77584,2577.2,2577.0,2.71708]
[1747710780139,3.8494,2577.3,2576.6,3.2078]
[1747710780345,2.0536,2577.3,2576.6,5.2263]
[1747710780645,9.48,2577.6,2577.1,0.77585]
[1747710780846,0.77581,2577.3,2577.2,0.77584]
[1747710781144,0.77581,2577.4,2577.2,0.77584]
[1747710781345,0.77581,2577.3,2577.1,2.73705]
[1747710781846,0.77581,2577.3,2577.2,0.77584]
[1747710782044,0.7758,2577.4,2577.1,1.9612]
[1747710782239,0.7758,2577.4,2577.2,0.77582]
[1747710782447,0.7758,2577.4,2577.2,2.79442]
[1747710782641,2.18271339,2577.5,2577.2,2.79442]
[1747710782642,0.00581339,2577.5,2577.4,0.77578]
[1747710783951,0.77569,2577.7,2577.6,0.76968661]
[1747710784249,2.74,2577.7,2577.6,1.54540661]
[1747710784951,2.74,2577.7,2577.6,4.75320661]
[1747710785153,0.77569,2577.7,2577.6,3.97748661]
[1747710785344,0.77568,2577.8,2577.6,4.28783378]
[1747710785648,0.77568,2577.8,2577.7,1.9928]
[1747710786352,0.77569,2577.7,2577.6,1.08003378]
[1747710786643,2.83729,2577.7,2577.6,1.08003378]
[1747710787048,2.74,2577.8,2577.6,1.08003378]
[1747710787247,2.74,2577.7,2577.6,1.54540661]
[1747710787550,2.74,2577.7,2577.6,0.77572]
[1747710788347,0.0057622,2577.9,2577.7,0.77566]
[1747710788654,0.0057622,2577.9,2577.8,0.77566]
[1747710789351,2.7457622,2577.9,2577.8,0.77566]
[1747710789738,0.77572,2577.6,2577.5,3.2078]
[1747710789942,4.2421,2577.8,2577.4,0.00581339]
[1747710790138,0.0057622,2577.9,2577.8,0.77566]
[1747710790650,0.0057622,2577.9,2577.8,9.77306]
[1747710790853,0.0057622,2577.9,2577.8,10.08335288]
[1747710792341,0.77536,2578.8,2578.6,0.77541]
[1747710792545,15.8675,2578.9,2578.2,1.93885]
[1747710792546,15.8675,2578.9,2578.5,0.77544]
[1747710792742,2.896,2578.7,2578.5,0.77544]
[1747710792944,2.1206,2578.7,2578.3,3.2078]
[1747710793140,4.8606,2578.7,2578.3,3.2078]
[1747710793345,4.8606,2578.7,2578.4,0.31029288]
[1747710793852,0.77545,2578.6,2578.4,0.31029288]
[1747710794049,2.1206,2578.5,2578.4,0.31029288]
[1747710794349,4.8606,2578.5,2578.4,0.31029288]
[1747710794649,4.8606,2578.5,2578.4,1.08577288]
[1747710795251,4.8606,2578.5,2578.4,0.31029288]
[1747710795747,2.74,2578.5,2578.4,0.31029288]
[1747710795948,2.74,2578.5,2578.4,1.08577288]
[1747710796146,0.77536,2578.8,2578.6,0.7754]
[1747710796346,2.166,2578.9,2578.4,0.31029288]
[1747710796548,2.166,2578.7,2578.4,0.31029288]
[1747710796846,0.77545,2578.5,2578.4,0.31029288]
[1747710797239,15.15845,2578.5,2578.4,0.31029288]
[1747710797750,5.68145,2578.5,2578.4,0.31029288]
[1747710798053,0.77549,2578.4,2578.2,0.77554]
[1747710798251,3.51546,2578.5,2578.3,0.7755]
[1747710798446,2.74,2578.5,2578.4,0.77548]
[1747710800248,3.2078,2578.7,2578.6,0.77542]
[1747710800449,10.25133,2578.9,2578.7,0.77538]
[1747710800752,9.476,2578.9,2578.5,3.2078]
[1747710801044,12.99134,2578.9,2578.7,0.77536]
[1747710801249,4.7561,2578.9,2578.8,0.77536]
[1747710801642,2.74,2578.9,2578.8,0.77536]
[1747710802247,0.77531,2579.0,2578.8,0.77536]
[1747710802447,2.1515,2579.0,2578.9,0.77533]
[1747710803152,5.66682,2579.0,2578.8,0.77534]
[1747710803854,4.8915,2579.0,2578.8,0.77534]
[1747710804257,4.8915,2579.0,2578.9,0.77533]
[1747710805449,5.6668,2579.0,2578.8,0.77534]
[1747710805650,4.8915,2579.0,2578.9,2.92603]
[1747710807046,2.74,2579.0,2578.9,2.92603]
[1747710807240,2.0976,2579.4,2578.9,2.92603]
[1747710807241,2.0976,2579.4,2579.2,0.77522]
[1747710807445,2.87278,2579.4,2579.3,2.1507]
[1747710807653,2.0976,2579.4,2579.3,2.1507]
[1747710807954,2.87279,2579.4,2579.1,3.2078]
[1747710808151,2.74,2579.4,2579.3,0.77521]
[1747710809552,2.74,2579.4,2579.2,2.163]
[1747710809752,0.77521,2579.3,2579.2,2.163]
[1747710810056,0.7753,2579.0,2578.9,2.415]
[1747710810248,3.5153,2579.0,2578.9,2.415]
[1747710810853,0.77536,2578.8,2578.7,3.2078]
[1747710811357,3.51536,2578.8,2578.7,3.2078]
[1747710811553,0.77539,2578.7,2578.6,0.00581339]
[1747710811858,2.73659,2578.7,2578.6,0.00581339]
[1747710812255,13.68439,2578.7,2578.6,3.39e-06]
[1747710814258,13.86672007,2578.7,2578.6,3.39e-06]
[1747710817860,54.66672007,2578.7,2578.6,3.39e-06]
[1747710818564,54.75158484,2578.7,2578.6,3.39e-06]
[1747710820572,64.10658484,2578.7,2578.6,3.39e-06]
[1747710820754,54.75158484,2578.7,2578.6,3.39e-06]
[1747710820961,63.92425477,2578.7,2578.6,3.39e-06]
[1747710821665,23.12425477,2578.7,2578.6,3.39e-06]
[1747710824466,23.03939,2578.7,2578.6,3.39e-06]
[1747710825571,23.12425477,2578.7,2578.6,3.39e-06]
[1747710825963,13.76925477,2578.7,2578.6,3.39e-06]
[1747710826269,18.12525477,2578.7,2578.6,3.39e-06]
[1747710828576,18.04039,2578.7,2578.6,3.39e-06]
[1747710829578,18.12525477,2578.7,2578.6,3.39e-06]
[1747710829779,23.12525477,2578.7,2578.6,3.39e-06]
[1747710832670,0.77581,2577.3,2577.2,0.24482877]
[1747710832870,13.33961,2577.3,2577.2,0.24482877]
[1747710833075,15.3038,2577.3,2576.6,0.65411807]
[1747710833380,0.77599,2576.7,2576.6,8.07e-06]
[1747710833570,13.34079,2576.7,2576.6,8.07e-06]
[1747710834177,16.08079,2576.7,2576.6,8.07e-06]
[1747710835379,5.9478,2576.7,2576.4,0.00581339]
[1747710835587,0.77605,2576.5,2576.4,0.00581339]
[1747710836084,3.51605,2576.5,2576.4,2.03271339]
[1747710840482,12.85905,2576.5,2576.4,2.03271339]
[1747710840680,3.51605,2576.5,2576.4,2.03271339]
[1747710840982,12.85905,2576.5,2576.4,2.03271339]
[1747710841384,3.51605,2576.5,2576.4,2.03271339]
[1747710841887,12.85905,2576.5,2576.4,2.03271339]
[1747710843680,2.74,2576.5,2576.4,11.01659339]
[1747710843886,2.74,2576.5,2576.4,7.80879339]
[1747710844079,2.74,2576.5,2576.4,11.01659339]
[1747710845486,3.51605,2576.5,2576.4,10.24051339]
[1747710845788,6.80871477,2576.5,2576.4,2.03271339]
[1747710846883,6.03266477,2576.5,2576.1,3.2078]
[1747710847188,0.08486477,2576.5,2576.4,2.85068]
[1747710847786,3.21361339,2576.9,2576.4,10.2824]
[1747710847986,3.21361339,2576.9,2576.5,2.1423]
[1747710848182,2.74581339,2576.9,2576.8,0.77596]
[1747710850293,2.74581339,2576.9,2576.8,2.91826]
[1747710850989,2.74581339,2576.9,2576.8,10.00386]
[1747710851195,2.74,2577.3,2577.2,0.77584]
[1747710851692,2.74,2577.3,2577.1,0.77586]
[1747710851893,3.51581,2577.3,2577.2,4.2626]
[1747710852695,0.77593,2576.9,2576.8,2.0856]
[1747710853193,3.51593,2576.9,2576.8,2.0856]
[1747710853886,2.74,2576.9,2576.8,2.0856]
[1747710854092,2.74,2576.9,2576.8,4.2085]
[1747710854287,3.51593,2576.9,2576.8,4.2085]
[1747710854590,0.77596,2576.8,2576.7,3.2078]
[1747710854787,2.88026,2576.8,2576.7,2.1229]
[1747710855290,0.77608,2576.4,2576.3,2.0155]
[1747710855498,9.343,2576.5,2576.3,2.7916]
[1747710855692,10.11906,2576.5,2576.3,2.7916]
[1747710855992,10.20392477,2576.5,2576.3,2.7916]
[1747710856193,12.94392477,2576.5,2576.3,2.7916]
[1747710856787,12.94392477,2576.5,2576.4,2.1004]
[1747710857490,0.77611,2576.3,2576.2,5.31721339]
[1747710858091,3.51611,2576.3,2576.2,5.31721339]
[1747710858483,2.74,2576.3,2576.2,6.09335339]
[1747710858684,12.084,2576.3,2576.2,6.09335339]
[1747710858890,2.74,2576.3,2576.2,7.88555339]
[1747710859192,0.77611,2576.3,2576.2,2.10941339]
[1747710859387,0.77611,2576.3,2576.2,2.41993014]
[1747710860199,3.51611,2576.3,2576.2,2.41993014]
[1747710860499,2.74,2576.3,2576.2,2.41993014]
[1747710860798,3.51611,2576.3,2576.2,2.41993014]
[1747710861000,2.82486477,2576.3,2576.2,2.41993014]
[1747710861898,2.82486477,2576.3,2576.2,3.19607014]
[1747710863090,3.60097477,2576.3,2576.2,2.41993014]
[1747710863287,5.62137477,2576.3,2576.2,0.31633014]
[1747710863687,8.82917477,2576.3,2576.2,0.31633014]
[1747710863896,8.82917477,2576.3,2576.2,0.00581339]
[1747710864097,14.96537477,2576.3,2576.2,0.00581339]
[1747710864799,14.96537477,2576.3,2576.2,0.12712579]
[1747710864999,18.17317477,2576.3,2576.2,0.12712579]
[1747710865301,8.82917477,2576.3,2576.2,0.12712579]
[1747710865499,18.17317477,2576.3,2576.2,0.12712579]
[1747710865898,2.82486477,2576.3,2576.2,0.90326579]
[1747710866203,2.82486477,2576.3,2576.2,0.12712579]
[1747710866394,3.60097477,2576.3,2576.2,2.10832579]
[1747710866698,2.82486477,2576.3,2576.2,2.10832579]
[1747710866899,3.60097477,2576.3,2576.2,2.4188479]
[1747710867500,3.60097477,2576.3,2576.2,2.41883664]
[1747710867501,5.57797477,2576.3,2576.2,2.41883664]
[1747710867895,2.82486477,2576.3,2576.2,2.41883664]
[1747710868103,3.60097477,2576.3,2576.2,2.41883664]
[1747710870401,2.82486477,2576.3,2576.2,3.19497664]
[1747710871201,0.08486477,2576.3,2576.2,3.19497664]
[1747710871402,0.08486477,2576.3,2576.2,2.41883664]
[1747710871403,2.86127477,2576.3,2576.2,2.41883664]
[1747710872204,5.60127477,2576.3,2576.2,2.41883664]
[1747710872606,5.60127477,2576.3,2576.2,0.43763664]
[1747710873801,8.80907477,2576.3,2576.2,0.43763664]
[1747710875005,17.34896477,2576.3,2576.2,1.21377664]
[1747710875203,18.12507477,2576.3,2576.2,1.21377664]
[1747710875400,18.12507477,2576.3,2576.2,0.43763664]
[1747710877208,18.12507477,2576.3,2576.2,0.12711453]
[1747710877706,2.82486477,2576.3,2576.2,0.90325453]
[1747710878105,2.82486477,2576.3,2576.2,2.76935453]
[1747710878410,0.86097477,2576.3,2576.2,1.99321453]
[1747710878610,0.86097477,2576.3,2576.2,1.87191339]
[1747710879112,3.60097477,2576.3,2576.2,1.87191339]
[1747710879712,3.60097477,2576.3,2576.2,1.99321526]
[1747710879912,3.60097477,2576.3,2576.2,2.30375005]
[1747710880114,2.82486477,2576.3,2576.2,3.07989005]
[1747710881114,0.08486477,2576.3,2576.2,3.07989005]
[1747710881414,0.86097477,2576.3,2576.2,2.30375005]
[1747710881615,0.08486477,2576.3,2576.2,3.07989005]
[1747710883417,0.08486477,2576.3,2576.2,2.30375005]
[1747710883720,0.86097477,2576.3,2576.2,0.43765005]
[1747710884216,3.60097477,2576.3,2576.2,2.33275005]
[1747710884818,2.82486477,2576.3,2576.2,3.10889005]
[1747710885306,2.82486477,2576.3,2576.2,5.15889005]
[1747710887213,2.82486477,2576.3,2576.2,5.48596234]
[1747710887614,2.82486477,2576.3,2576.2,10.48596234]
[1747710888617,2.82486477,2576.3,2576.2,5.48596234]
[1747710889119,0.08486477,2576.3,2576.2,5.48596234]
[1747710889914,0.08486477,2576.3,2576.2,10.64829849]
[1747710890517,0.08486477,2576.3,2576.2,5.64829849]
[1747710891423,2.66404039,2576.7,2576.6,0.77602]
[1747710891720,2.66404039,2576.7,2576.2,6.81248849]
[1747710891721,0.77596,2576.8,2576.4,3.2078]
[1747710891920,3.40669039,2576.9,2576.7,3.2078]
[1747710892227,0.77596,2576.8,2576.7,3.2078]
[1747710892522,2.07396477,2576.8,2576.7,0.77599]
[1747710892727,2.07396477,2576.8,2576.7,0.89729187]
[1747710893019,0.08486477,2576.8,2576.7,4.10509187]
[1747710893214,2.82486477,2576.8,2576.7,4.41562666]
[1747710893416,2.74,2576.8,2576.7,4.41562666]
[1747710894220,1.41759039,2576.9,2576.7,4.41562666]
[1747710894621,3.36899039,2576.9,2576.8,1.9245]
[1747710894823,3.36899039,2576.9,2576.8,2.35633666]
[1747710895123,6.10899039,2576.9,2576.8,2.35633666]
[1747710895825,9.31679039,2576.9,2576.8,0.43183666]
[1747710896222,6.10899039,2576.9,2576.8,0.43183666]
[1747710896424,5.46735,2576.9,2576.8,0.43183666]
[1747710897226,5.46733,2576.9,2576.8,0.43183666]
[1747710899223,5.46733,2576.9,2576.8,0.31053479]
[1747710900325,8.67513,2576.9,2576.8,0.31053479]
[1747710900630,13.67513,2576.9,2576.8,0.31053479]
[1747710900927,4.6914,2576.9,2576.5,1.01792887]
[1747710901128,0.776,2576.7,2576.5,2.96182887]
[1747710901529,0.776,2576.7,2576.5,2.71994]
[1747710901833,13.9674,2576.9,2576.5,1.9439]
[1747710902131,12.00333,2576.9,2576.7,0.77598]
[1747710902328,0.64164039,2577.2,2576.8,1.9298]
[1747710902530,0.64164039,2577.2,2577.1,0.77587]
[1747710902930,0.64164039,2577.2,2577.1,4.60217]
[1747710903127,3.38164039,2577.2,2577.1,4.60217]
[1747710903931,2.74,2577.2,2577.1,4.60217]
[1747710904135,0.96228522,2577.3,2577.2,0.77584]
[1747710906533,0.96228522,2577.3,2577.2,5.77584]
[1747710907226,0.96228522,2577.3,2577.2,0.77584]
[1747710907931,0.96228522,2577.3,2577.2,1.09814375]
[1747710908633,2.04151339,2577.5,2577.4,0.77578]
[1747710909134,4.78151339,2577.5,2577.4,0.77578]
[1747710909329,4.78151339,2577.5,2577.4,2.81898]
[1747710909530,2.74581339,2577.5,2577.4,2.81898]
[1747710911326,0.00581339,2577.5,2577.4,8.05974157]
[1747710911637,0.00581339,2577.5,2577.4,3.05974157]
[1747710912941,0.00581339,2577.5,2577.4,3.37003983]
[1747710913333,0.00581339,2577.5,2577.4,8.37003983]
[1747710915036,0.00581339,2577.5,2577.4,8.12927826]
[1747710917336,0.00581339,2577.5,2577.4,12.40227826]
[1747710917533,0.00581339,2577.5,2577.4,3.12927826]
[1747710917734,0.00581339,2577.5,2577.4,0.31029826]
[1747710917735,0.78156339,2577.5,2577.4,0.31029826]
[1747710918237,3.52156339,2577.5,2577.4,0.31029826]
[1747710918640,2.74581339,2577.5,2577.4,0.31029826]
[1747710919642,4.73907816,2577.5,2577.3,3.9836]
[1747710922547,4.73907816,2577.5,2577.4,1.08615234]
[1747710922744,2.83067816,2577.5,2577.4,1.08615234]
[1747710923148,0.09067816,2577.5,2577.4,1.08615234]
[1747710923347,0.09067816,2577.5,2577.4,6.08615234]
[1747710923546,0.09067816,2577.5,2577.4,3.04575234]
[1747710923951,0.09067816,2577.5,2577.4,4.94595234]
[1747710924656,0.09067816,2577.5,2577.4,12.68207054]
[1747710926243,2.0393,2578.1,2577.4,11.90629054]
[1747710926545,4.62963185,2578.7,2577.4,11.90629054]
[1747710926546,0.64643185,2578.7,2578.1,1.93894]
[1747710926750,0.64643185,2578.7,2578.6,0.77542]
[1747710927250,3.38643185,2578.7,2578.6,0.77542]
[1747710927453,3.38643185,2578.7,2578.5,3.2078]
[1747710927650,2.0544,2578.6,2578.5,3.98325]
[1747710928950,2.0544,2578.6,2578.5,3.2078]
[1747710929148,4.7944,2578.6,2578.4,0.24678517]
[1747710929348,1.8917,2578.5,2578.4,0.24678517]
[1747710929551,3.8065,2578.5,2578.4,0.55701913]
[1747710930353,6.5465,2578.5,2578.4,1.33249913]
[1747710930653,6.5465,2578.5,2578.4,4.54029913]
[1747710930848,4.6548,2578.5,2578.4,6.54859913]
[1747710931052,2.74,2578.5,2578.4,6.54859913]
[1747710931255,1.9148,2578.8,2578.6,0.7754]
[1747710931560,1.9148,2578.8,2578.7,0.77539]
[1747710931750,1.9148,2578.8,2578.7,3.98319]
[1747710932155,4.6548,2578.8,2578.7,3.98319]
[1747710933755,4.6548,2578.8,2578.7,4.29342396]
[1747710934469,2.74,2578.8,2578.7,4.29342396]
[1747710934649,2.74,2578.8,2578.7,13.52042396]
[1747710934956,2.82486477,2578.8,2578.7,13.52042396]
[1747710935859,2.82486477,2578.8,2578.7,3.51803396]
[1747710936059,2.82486477,2578.8,2578.7,0.31023396]
[1747710936060,8.60022477,2578.8,2578.7,0.31023396]
[1747710936359,0.77545,2578.5,2578.4,0.6579114]
[1747710936557,0.77554,2578.2,2578.1,0.81802185]
[1747710936863,0.77563,2577.9,2577.8,1.26450729]
[1747710937247,2.74,2577.9,2577.8,1.26450729]
[1747710937852,2.74,2577.9,2577.8,2.04016729]
[1747710938248,1.86361339,2578.1,2578.0,0.7756]
[1747710938759,0.00581339,2578.1,2578.0,3.9834]
[1747710939655,0.00581339,2578.1,2578.0,4.22542355]
[1747710939855,0.00581339,2578.1,2578.0,6.16182355]
[1747710941553,0.00581339,2578.1,2578.0,11.16182355]
[1747710941756,1.8283,2578.6,2578.5,0.77545]
[1747710941958,1.8283,2578.6,2578.5,3.98325]
[1747710942263,4.5683,2578.6,2578.5,3.98325]
[1747710943153,4.5683,2578.6,2578.5,3.2078]
[1747710943357,4.5683,2578.6,2578.4,0.77548]
[1747710943555,1.8883,2578.5,2578.4,1.09825222]
[1747710944360,4.6283,2578.5,2578.4,1.09825222]
[1747710944561,4.6283,2578.5,2578.4,0.32277222]
[1747710944753,4.6283,2578.5,2578.4,1.09825222]
[1747710944959,4.6283,2578.5,2578.4,0.32277222]
[1747710946055,4.6283,2578.5,2578.3,0.7755]
[1747710946254,1.958,2578.4,2578.3,0.7755]
[1747710946457,3.7899,2578.4,2578.3,0.7755]
[1747710946659,3.7899,2578.4,2578.1,3.44928166]
[1747710946860,0.77554,2578.2,2578.1,3.44928166]
[1747710947267,3.51554,2578.2,2578.1,3.44928166]
[1747710948466,2.74,2578.2,2578.1,3.44928166]
[1747710948969,8.51554,2578.2,2578.1,0.24148166]
[1747710949167,9.7547,2578.2,2577.8,0.24148166]
[1747710949377,0.77563,2577.9,2577.8,0.24148166]
[1747710949760,7.79033,2577.9,2577.8,0.24148166]
[1747710950163,10.53033,2577.9,2577.8,0.24148166]
[1747710951965,9.7547,2577.9,2577.8,0.24148166]
[1747710952171,4.7547,2577.9,2577.8,1.01714166]
[1747710952569,4.7547,2577.9,2577.8,0.77566]
[1747710953572,4.7547,2577.9,2577.8,1.08598966]
[1747710954169,1.9618,2578.1,2577.8,0.31032966]
[1747710954369,2.0165,2578.0,2577.9,0.77563]
[1747710954763,2.0165,2578.0,2577.8,0.31032966]
[1747710954969,2.79211,2578.0,2577.8,0.31032966]
[1747710955270,5.53212,2578.0,2577.7,3.2078]
[1747710955471,4.7565,2578.0,2577.7,3.2078]
[1747710955673,0.77563,2577.9,2577.7,3.2078]
[1747710955867,3.9938,2577.8,2577.7,3.2078]
[1747710956369,3.9938,2577.8,2577.7,4.2938358]
[1747710956563,2.74,2577.9,2577.8,0.77566]
[1747710956762,2.74,2577.9,2577.8,2.62466]
[1747710958173,2.74,2577.9,2577.8,2.9350058]
[1747710958363,2.74,2577.9,2577.8,0.3103458]
[1747710958565,4.6251,2577.9,2577.8,0.3103458]
[1747710958966,6.5782,2577.9,2577.8,0.3103458]
[1747710959168,6.5782,2577.9,2577.8,1.0860058]
[1747710959474,6.5782,2577.9,2577.8,0.77566]
[1747710960377,4.6931,2577.9,2577.8,0.77566]
[1747710960967,2.74,2577.9,2577.8,0.77566]
[1747710961172,1.9618,2578.1,2578.0,0.7756]
[1747710961673,0.08486477,2578.2,2578.1,0.77557]
[1747710962374,0.64643185,2578.7,2578.6,0.77542]
[1747710963072,3.38643185,2578.7,2578.6,0.77542]
[1747710963973,4.16183185,2578.7,2578.4,5.6228]
[1747710964275,5.1395,2578.6,2578.1,0.77556]
[1747710964572,5.1395,2578.6,2578.3,0.77551]
[1747710964777,1.8292,2578.5,2578.3,0.77551]
[1747710964981,1.9317,2578.4,2578.2,0.77553]
[1747710965180,3.9184,2578.4,2578.2,0.77553]
[1747710965476,3.9184,2578.4,2578.1,1.01703166]
[1747710965676,4.6939,2578.4,2578.1,0.24148166]
[1747710966072,6.6584,2578.4,2578.2,0.31029317]
[1747710966681,0.77554,2578.2,2578.1,0.24148166]
[1747710966973,9.95954,2578.2,2578.1,0.24148166]
[1747710967277,19.56214,2578.2,2578.1,0.24148166]
[1747710968174,18.7866,2578.2,2578.1,0.77557]
[1747710968867,18.7866,2578.2,2578.0,0.77559]
[1747710969071,13.7876,2578.2,2578.0,0.77559]
[1747710969271,4.6026,2578.2,2577.9,0.77561]
[1747710969469,13.7876,2578.2,2577.8,1.9478]
[1747710969668,13.7876,2578.2,2577.6,0.00581339]
[1747710969975,3.2078,2578.0,2577.6,0.00581339]
[1747710970176,3.98349,2577.7,2577.6,0.00581339]
[1747710970375,3.87864,2577.6,2576.8,2.52733585]
[1747710970580,3.98373,2576.9,2576.8,2.52733585]
[1747710970778,13.16873,2576.9,2576.8,2.52733585]
[1747710971082,18.16874,2576.9,2576.7,0.80606391]
[1747710971384,3.8956,2576.8,2576.7,0.80606391]
[1747710971577,4.67156,2576.8,2576.7,0.80606391]
[1747710971777,0.77602,2576.7,2576.5,0.00581339]
[1747710972072,5.2075,2576.6,2576.5,0.00581339]
[1747710972276,5.98352,2576.6,2576.5,0.00581339]
[1747710972588,5.98352,2576.6,2576.0,2.52733585]
[1747710972589,0.77617,2576.1,2576.0,2.52733585]
[1747710972784,9.96217,2576.1,2576.0,2.52733585]
[1747710973376,12.70217,2576.1,2576.0,2.52733585]
[1747710973782,0.77624,2575.9,2575.8,0.00581339]
[1747710973985,3.98404,2575.9,2575.8,0.00581339]
[1747710974287,11.72404,2575.9,2575.8,0.00581339]
[1747710975083,12.8884,2575.9,2575.0,3.79100378]
[1747710975385,3.2078,2575.6,2575.0,5.78760378]
[1747710975583,0.77648,2575.1,2575.0,3.79100378]
[1747710976081,0.00582513,2575.3,2575.0,3.79100378]
[1747710976280,2.74,2575.1,2575.0,5.78760378]
[1747710976776,3.51648,2575.1,2575.0,3.79100378]
[1747710977085,0.77653,2575.0,2574.8,2.00242513]
[1747710977283,2.74804,2574.9,2574.8,2.00242513]
[1747710977790,1.9715,2574.9,2574.8,2.00242513]
[1747710977985,2.74804,2574.9,2574.8,2.00242513]
[1747710978189,4.7115,2574.9,2574.8,2.00242513]
[1747710978785,5.48804,2574.9,2574.8,2.00242513]
[1747710978986,4.7115,2574.9,2574.8,2.00242513]
[1747710979993,5.48804,2574.9,2574.8,2.00242513]
[1747710980695,4.7115,2574.9,2574.8,2.00242513]
[1747710981191,12.70849,2575.1,2574.8,2.00242513]
[1747710981392,1.9256,2575.0,2574.8,2.00242513]
[1747710981891,2.70211,2575.0,2574.8,2.00242513]
[1747710982096,2.70211,2575.0,2574.5,3.982]
[1747710982097,1.9256,2575.0,2574.5,3.982]
[1747710982296,3.2078,2574.6,2573.3,0.310692]
[1747710982481,3.2078,2574.0,2573.8,0.77685]
[1747710982687,3.2078,2574.0,2573.3,0.310692]
[1747710982688,3.2078,2574.0,2573.7,0.77688]
[1747710982989,3.2078,2574.0,2573.4,0.24124973]
[1747710983196,3.21362513,2574.0,2573.4,0.00582513]
[1747710983498,3.21362513,2574.0,2573.8,0.77686]
[1747710984180,3.21362513,2574.0,2573.8,0.77685]
[1747710984585,3.21362513,2574.0,2573.8,0.77686]
[1747710985196,3.21362513,2574.0,2573.9,0.77684]
[1747710985893,3.21362513,2574.0,2573.7,0.77688]
[1747710986086,1.8257,2573.9,2573.4,0.00582513]
[1747710986293,3.2078,2573.6,2573.4,0.00582513]
[1747710986490,1.8257,2573.5,2573.4,0.00582513]
[1747710987088,5.34266,2573.5,2573.4,0.00582513]
[1747710987290,1.94248,2573.4,2572.5,0.12140102]
[1747710987491,3.2078,2572.6,2572.3,0.9497649]
[1747710987698,3.2078,2572.9,2572.4,1.8513]
[1747710987893,3.2078,2572.7,2572.6,0.77722]
[1747710988801,3.2078,2572.7,2572.4,0.00582513]
[1747710989094,2.0041,2572.6,2572.4,0.78311513]
[1747710989293,2.0041,2572.6,2572.4,0.78310513]
[1747710990500,3.2078,2572.7,2572.6,0.77723]
[1747710991296,3.2078,2572.7,2572.5,2.80094]
[1747710991591,1.8992,2572.6,2572.5,2.80094]
[1747710992805,1.8992,2572.6,2572.4,0.00582513]
[1747710993208,4.6392,2572.6,2572.4,0.00582513]
[1747710993393,0.77726,2572.5,2572.4,0.00582513]
[1747710993599,2.73476,2572.5,2572.4,0.00582513]
[1747710993997,7.73476,2572.5,2572.4,0.00582513]
[1747710994198,10.47476,2572.5,2572.4,0.00582513]
[1747710994405,9.6975,2572.5,2570.9,3.6858765]
[1747710994608,3.2078,2571.4,2571.3,2.69702]
[1747710995699,0.00582513,2571.6,2571.5,0.77756]
[1747710996596,1.93412513,2571.6,2571.5,0.77756]
[1747710997199,0.00582513,2571.6,2571.5,0.77756]
[1747710997898,0.00582513,2571.6,2571.5,5.77756]
[1747710998103,1.9437,2572.8,2571.5,7.74]
[1747710998104,11.1037,2572.8,2571.5,7.74]
[1747710998300,3.2078,2572.5,2571.8,3.2078]
[1747710998502,3.2078,2572.5,2572.3,0.7773]
[1747710998807,1.9283,2572.4,2572.1,0.77736]
[1747710999002,1.9283,2572.4,2571.7,1.9774]
[1747710999198,3.2078,2572.2,2571.7,1.9774]
[1747710999398,3.2078,2571.9,2571.2,1.93]
[1747710999598,2.0129,2571.8,2571.7,0.7775]
[1747711001304,14.3203,2572.2,2572.0,0.77741]
[1747711001305,2.0129,2572.1,2572.0,0.77741]
[1747711002502,0.00582513,2572.3,2572.2,0.77735]
[1747711002804,0.00582513,2572.3,2572.2,0.89882226]
[1747711003199,0.00582513,2572.3,2572.2,0.77735]
[1747711005604,0.00582513,2572.3,2572.2,1.08830338]
[1747711007005,0.00582513,2572.3,2572.2,6.08830338]
[1747711007603,2.0027,2573.0,2572.3,1.9433]
[1747711007809,1.8642,2572.9,2572.8,0.77717]